[Event "44th Chess Olympiad Open 2022"]
[Site "Chennai"]
[Date "2022.08.05"]
[Round "7.48"]
[White "Lorenzana, Wilson Estuardo"]
[Black "De Silva, L M S T"]
[Result "0-1"]
[ECO "C24"]
[WhiteElo "2182"]
[BlackElo "2212"]
[Annotator "ChessBase"]
[PlyCount "146"]
[EventDate "2022.07.29"]
[EventType "team-tourn"]
[EventCountry "IND"]
[SourceTitle "playchess.com"]
[Source "ChessBase"]
[SourceQuality "1"]
[WhiteTeam "Guatemala"]
[BlackTeam "Sri Lanka"]
[WhiteTeamCountry "GUA"]
[BlackTeamCountry "SRI"]
[TimeControl "40/5400+30:1800+30"]

1. e4 {[%emt 0:00:05]} e5 {[%emt 0:00:13]} 2. Bc4 {[%emt 0:00:13]} Nf6 {[%emt 0:00:22]} 3. d3 {[%emt 0:00:06]} c6 {[%emt 0:02:01]} 4. Nf3 {[%emt 0:00:06]} d5 {[%emt 0:02:45]} 5. Bb3 {[%emt 0:00:07]} Bd6 {[%emt 0:03:43]} 6. Nc3 {[%emt 0:01:47]} Bc7 {[%emt 0:13:56]} 7. O-O {[%emt 0:04:59]} O-O {[%emt 0:03:12]} 8. Bg5 {[%emt 0:07:11]} d4 {[%emt 0:05:14]} 9. Ne2 {[%emt 0:02:33]} h6 {[%emt 0:00:41]} 10. Bc1 {[%emt 0:00:13]} Nbd7 {[%emt 0:04:42]} 11. a4 {[%emt 0:07:38]} Nc5 {[%emt 0:02:02]} 12. Ba2 {[%emt 0:04:08]} a5 {[%emt 0:07:26]} 13. Ng3 {[%emt 0:02:23]} Nxa4 {[%emt 0:10:37]} 14. Nh4 {[%emt 0:02:32]} Nc5 {[%emt 0:05:02]} 15. Ngf5 {[%emt 0:02:24]} Ne6 {[%emt 0:05:09]} 16. Qf3 {[%emt 0:01:28]} Nf4 {[%emt 0:05:40]} 17. g3 {[%emt 0:15:48]} Nh3+ {[%emt 0:02:25]} 18. Kh1 {[%emt 0:02:45]} Be6 {[%emt 0:04:32]} 19. Qg2 {[%emt 0:06:16]} Bxa2 {[%emt 0:04:49]} 20. Rxa2 {[%emt 0:00:36]} Ng5 {[%emt 0:00:06]} 21. f4 {[%emt 0:00:06]} Ngh7 {[%emt 0:01:19]} 22. fxe5 {[%emt 0:01:55]} Ng4 {[%emt 0:01:18]} 23. Nf3 {[%emt 0:00:57]} c5 {[%emt 0:01:20]} 24. h3 {[%emt 0:11:17]} Nxe5 {[%emt 0:00:52]} 25. Bd2 {[%emt 0:08:53]} Ra6 {[%emt 0:01:12]} 26. Nxe5 {[%emt 0:00:35]} Bxe5 {[%emt 0:00:06]} 27. h4 {[%emt 0:00:09]} h5 {[%emt 0:00:54]} 28. Qf3 {[%emt 0:00:39]} Kh8 {[%emt 0:02:23]} 29. Raa1 {[%emt 0:05:34]} a4 {[%emt 0:00:40]} 30. Qg2 {[%emt 0:07:29]} g6 {[%emt 0:01:46]} 31. Nh6 {[%emt 0:00:06]} Kg7 {[%emt 0:01:02]} 32. Rf3 {[%emt 0:04:56]} Rf6 {[%emt 0:03:53]} 33. Raf1 {[%emt 0:00:00]} Rxf3 {[%emt 0:00:32]} 34. Rxf3 {[%emt 0:00:00]} Nf6 {[%emt 0:02:07]} 35. Bg5 {[%emt 0:00:00]} Qd7 {[%emt 0:00:47]} 36. Qf1 {[%emt 0:00:43]} Ng4 {[%emt 0:00:32]} 37. Nxg4 {[%emt 0:00:27]} hxg4 {[%emt 0:00:46]} 38. Bf6+ {[%emt 0:01:00]} Bxf6 {[%emt 0:00:42]} 39. Rxf6 {[%emt 0:00:06]} Qe7 {[%emt 0:00:06]} 40. Rf4 {[%emt 0:00:34]} Qe6 {[%emt 0:00:12]} 41. Kg2 {[%emt 0:05:19]} Rh8 {[%emt 0:02:14]} 42. Qe1 {[%emt 0:02:37]} b6 {[%emt 0:04:19]} 43. Qd2 {[%emt 0:03:26]} Rh5 {[%emt 0:02:09]} 44. c3 {[%emt 0:00:23]} Qd7 {[%emt 0:02:18]} 45. c4 {[%emt 0:00:58]} Re5 {[%emt 0:06:00]} 46. Rf2 {[%emt 0:02:22]} Qe7 {[%emt 0:02:33]} 47. Rf4 {[%emt 0:03:59]} Qe6 {[%emt 0:01:55]} 48. Rf2 {[%emt 0:06:49]} Qe7 {[%emt 0:01:10]} 49. Qd1 {[%emt 0:02:02]} f5 {[%emt 0:01:18]} 50. h5 {[%emt 0:04:37]} gxh5 {[%emt 0:01:05]} 51. Rxf5 {[%emt 0:01:48]} Rxf5 {[%emt 0:00:26]} 52. exf5 {[%emt 0:00:05]} Qe3 {[%emt 0:02:06]} 53. Qxa4 {[%emt 0:00:33]} Qf3+ {[%emt 0:00:07]} 54. Kh2 {[%emt 0:00:07]} Qf2+ {[%emt 0:00:03]} 55. Kh1 {[%emt 0:00:04]} Qf1+ {[%emt 0:00:04]} 56. Kh2 {[%emt 0:00:05]} Qh3+ {[%emt 0:00:04]} 57. Kg1 {[%emt 0:01:54]} Qxg3+ {[%emt 0:00:06]} 58. Kh1 {[%emt 0:00:18]} Qf3+ {[%emt 0:00:32]} 59. Kg1 {[%emt 0:00:05]} Qxf5 {[%emt 0:00:57]} 60. Qa7+ {[%emt 0:00:18]} Qf7 {[%emt 0:00:15]} 61. Qb8 {[%emt 0:00:43]} Qe6 {[%emt 0:00:28]} 62. Qd8 {[%emt 0:00:40]} Kg6 {[%emt 0:00:31]} 63. Kg2 {[%emt 0:01:47]} Qf6 {[%emt 0:00:58]} 64. Qg8+ {[%emt 0:00:43]} Kh6 {[%emt 0:00:06]} 65. Qc8 {[%emt 0:01:22]} Kg5 {[%emt 0:00:40]} 66. Qc7 {[%emt 0:00:30]} h4 {[%emt 0:00:24]} 67. Qc8 {[%emt 0:01:04]} h3+ {[%emt 0:01:40]} 68. Kg1 {[%emt 0:00:03]} Qe7 {[%emt 0:03:44]} 69. Kf1 {[%emt 0:01:03]} Qe5 {[%emt 0:02:03]} 70. Qg8+ {[%emt 0:00:24]} Kh4 {[%emt 0:00:28]} 71. Qg6 {[%emt 0:00:32]} Qf4+ {[%emt 0:00:16]} 72. Ke2 {[%emt 0:00:31]} Kg3 {[%emt 0:00:14]} 73. Qh7 {[%emt 0:00:32]} h2 {[%emt 0:00:24]} 0-1

[Event "44th Chess Olympiad Open 2022"]
[Site "Chennai"]
[Date "2022.08.05"]
[Round "7.48"]
[White "Nabil Nazar, Mohamed"]
[Black "Galvez Dastin, Eduardo"]
[Result "0-1"]
[ECO "D00"]
[WhiteElo "1845"]
[BlackElo "2152"]
[Annotator "TA"]
[PlyCount "158"]
[EventDate "2022.07.29"]
[EventType "team-tourn"]
[EventCountry "IND"]
[SourceTitle "playchess.com"]
[Source "ChessBase"]
[SourceQuality "1"]
[WhiteTeam "Sri Lanka"]
[BlackTeam "Guatemala"]
[WhiteTeamCountry "SRI"]
[BlackTeamCountry "GUA"]
[TimeControl "40/5400+30:1800+30"]

{[%evp 9,158,12,12,8,21,25,20,12,27,0,0,0,23,10,27,-8,-7,-12,-13,-8,-3,0,0,-9,-4,-16,-16,-24,-4,-29,-36,-28,-16,-22,-17,-26,-19,-18,-19,-81,-45,-41,-14,-27,0,-16,0,-53,-25,-140,-150,-139,-108,-120,-123,-112,-118,-173,-85,-83,-73,-70,-12,-8,0,-80,-29,-69,-77,-67,-53,-65,-11,-27,-91,-76,-70,-81,0,-27,0,0,0,0,0,0,0,0,0,0,0,0,0,-118,-137,-296,0,-89,0,-93,-93,-207,0,0,0,-119,-97,-95,0,0,0,-104,-115,-108,-127,-111,-73,-146,0,0,611,577,353,-89,-62,-62,0,0,0,-876,-832,-1273,-940,-876,-919,-854,-818,-915,-884,-29980,-29974,-29989,-29990,-29993,-29993,-29995,-29993,-29994,-29993,-29994,-29990]} 1. d4 {[%emt 0:00:07]} d5 {[%emt 0:00:07]} 2. Bf4 {[%emt 0:00:09]} c5 {[%emt 0:00:08]} 3. e3 {[%emt 0:00:08]} Nc6 {[%emt 0:00:05]} 4. Nf3 {[%emt 0:01:09]} Bg4 {[%emt 0:01:32]} 5. Nbd2 {[%emt 0:01:05]} e6 {[%emt 0:00:10]} 6. c3 {[%emt 0:00:10] D00: 1 d4 d5: Unusual lines.} Qb6 {[%emt 0:01:30]} 7. Qb3 {[%emt 0:06:44]} c4 {[%emt 0:00:31]} 8. Qc2 {[%emt 0:01:18] The position is equal.} Nf6 {[%emt 0:00:22]} 9. Be2 {[%emt 0:05:34]} Bf5 {[%emt 0:07:07]} 10. Qc1 {[%emt 0:00:03]} h6 {[%emt 0:00:52]} 11. h3 {[%emt 0:03:01]} Qd8 {[%emt 0:04:26]} 12. Bd1 {[%emt 0:04:38]} b5 {[%emt 0:08:43][%cal Bb7b5,Bb5b4][%mdl 32]} 13. Bc2 {[%emt 0:01:41]} Bxc2 {[%emt 0:01:20]} 14. Qxc2 {[%emt 0:00:02]} Be7 {[%emt 0:04:45]} 15. O-O {[%emt 0:04:05]} O-O {[%emt 0:00:15] [#]} 16. e4 $146 {[%emt 0:02:15]} ({Predecessor:} 16. a3 Bd6 17. Bxd6 Qxd6 18. e4 Qc7 19. Rfe1 a5 20. exd5 exd5 21. Qf5 Rfe8 22. Nf1 {0-1 (64) Kuznecov,M (2378)-Ljukin,S (2368) Chess.com INT 2020}) 16... b4 {[%emt 0:04:06]} 17. Ne5 {[%emt 0:02:41]} Rc8 {[%emt 0:02:06]} 18. Rfe1 {[%emt 0:03:18]} Re8 {[%emt 0:19:26]} 19. exd5 {[%emt 0:07:12]} (19. Nxc6 {with more complications.} Rxc6 20. Be5 Nd7 21. exd5 exd5 22. Qa4) 19... Nxd5 {[%emt 0:07:57]} 20. Bg3 {[%emt 0:05:37]} bxc3 {[%emt 0:02:25]} 21. bxc3 {[%emt 0:01:06]} Nxe5 {[%emt 0:00:42]} 22. dxe5 {[%emt 0:00:23]} Qa5 {[%emt 0:00:52]} 23. Ne4 {[%emt 0:00:45]} Red8 {[%emt 0:01:12]} 24. f3 {[%emt 0:06:39]} (24. Rac1 $11) 24... Rd7 {[%emt 0:07:31]} 25. Rab1 {[%emt 0:03:51]} Nb6 {[%emt 0:02:09]} 26. Bf2 {[%emt 0:04:39]} Nd5 {[%emt 0:06:18][%cal Bb6d5,Bd5e7,Be7c6][%mdl 32]} 27. g3 {[%emt 0:02:06] Against Nf4} Ba3 {[%emt 0:05:17]} 28. Bd4 {[%emt 0:00:48]} (28. f4 $11) 28... Ne7 {[%emt 0:00:18]} 29. g4 {[%emt 0:09:24]} (29. f4 $11) 29... Nc6 $17 {[%emt 0:00:12][%csl LRd4,LRe5]} 30. Red1 {[%emt 0:14:09]} Nxe5 {[%emt 0:02:41]} 31. Bxe5 {[%emt 0:00:04]} Rxd1+ {[%emt 0:00:06]} 32. Qxd1 {[%emt 0:00:05]} Qxe5 {[%emt 0:00:06]} 33. Qd7 {[%emt 0:00:43]} (33. Kg2 $17 {was necessary.}) 33... Rb8 {[%emt 0:04:45]} (33... Rc7 $1 $19 {[%cal Rc7d7] is more deadly.} 34. Qe8+ Kh7) 34. Rxb8+ {[%emt 0:03:39]} Qxb8 {[%emt 0:00:06][%mdl 4096] Endgame KQB-KQN} 35. Kg2 {[%emt 0:00:14]} Qb2+ {[%emt 0:00:28]} (35... Bc1 $15 36. Nd6 Kh7 37. Nxc4 Bg5) 36. Kg3 $11 {[%emt 0:00:15]} Qb8+ {[%emt 0:03:30]} (36... Qb6 $11 37. Kg2 Qb2+ 38. Kg3 Qb6) 37. Kg2 $1 $17 {[%emt 0:00:33]} Bf8 {[%emt 0:00:41]} (37... Bc1 $17 38. Nd6 Kh7 39. Nxc4 Bg5) 38. g5 {[%emt 0:01:37]} hxg5 {[%emt 0:00:38]} 39. Nxg5 {[%emt 0:00:52]} Qf4 {[%emt 0:00:26]} 40. h4 {[%emt 0:00:13]} a5 {[%emt 0:01:01]} ({Black should try} 40... a6 $15) 41. a4 $1 $11 {[%emt 0:31:40]} g6 {[%emt 0:04:35]} 42. Qd8 {[%emt 0:00:00]} Qd6 $1 {[%emt 0:13:34]} (42... Qxh4 $2 43. Qf6 Qh6 44. Qxf7+ Kh8 45. Qf6+ Qg7 46. Qxe6 $18) 43. Qe8 {[%emt 0:00:00]} Qe7 {[%emt 0:01:32]} (43... Qc7 $17) 44. Qc8 {[%emt 0:00:00]} Qc5 {[%emt 0:00:43]} 45. Qd7 {[%emt 0:00:00]} Qf5 {[%emt 0:00:12]} 46. Ne4 {[%emt 0:00:00]} Qf4 {[%emt 0:05:23]} 47. Qd8 {[%emt 0:00:00]} Qe5 {[%emt 0:06:34]} 48. Nf6+ {[%emt 0:00:00]} Kg7 {[%emt 0:00:10]} 49. Ne4 {[%emt 0:00:00]} Ba3 {[%emt 0:02:42]} 50. Qd7 {[%emt 0:00:05]} Bc1 {[%emt 0:00:33]} 51. Qd1 {[%emt 0:02:41]} (51. Nd6 $1 $11 {remains equal.} Qf4 52. Qe7) 51... Bf4 $17 {[%emt 0:00:27] Black is more active.} 52. Qd8 $2 {[%emt 0:00:35]} (52. Qd7 $17) 52... Bc1 $2 {[%emt 0:01:44]} (52... f5 $1 $19 {[%cal Rf5e4]} 53. Qe7+ Kh6 54. Qf8+ Qg7 55. Qxg7+ Kxg7) 53. Qd1 {[%emt 0:01:09]} Bh6 {[%emt 0:00:26]} ({Black should play} 53... Be3 $17 {Threatens to win with ...Qd5.} 54. Qd7 Bf4) 54. Qd8 {[%emt 0:03:13]} (54. Qd7 $1 $11) 54... Bf4 $1 {[%emt 0:00:06]} 55. Qe7 {[%emt 0:00:53] [#]} (55. Kf1 $17) 55... Qf5 $2 {[%emt 0:00:33]} (55... Bd2 $1 $19 {[%cal Rd2c3][%mdl 512]} 56. Qa3 (56. Nd6 Qe2+) 56... Be1) 56. Qd8 $11 {[%emt 0:04:12]} Qe5 {[%emt 0:01:13] White must now prevent ...f5.} 57. Qd7 {[%emt 0:00:25]} (57. Qe7 $1 $11) 57... Qd5 {[%emt 0:00:26]} 58. Qe7 {[%emt 0:00:31] aiming for Qf6+.} Qf5 {[%emt 0:00:41] Inhibits Qf6+.} (58... Bb8 $17 59. Qf6+ Kg8) 59. Qd8 {[%emt 0:00:47]} Qe5 {[%emt 0:00:43] Strongly threatening ...f5.} 60. Qd7 {[%emt 0:00:31]} (60. Qe7 $11 {keeps the balance.}) 60... Qc7 $17 {[%emt 0:00:13]} 61. Qd4+ {[%emt 0:00:39]} Be5 {[%emt 0:00:09]} 62. Qe3 {[%emt 0:00:15]} Qc6 {[%emt 0:01:16]} 63. h5 {[%emt 0:00:29]} (63. Qg5 $142 f6 64. Qe3) 63... Qd5 {[%emt 0:00:33]} ({Better is} 63... Qxa4 $17 {...Qc2+ is the strong threat.} 64. h6+ Kh8) 64. Qg5 $11 {[%emt 0:00:32]} Bxc3 $2 {[%emt 0:00:30][%mdl 8192]} 65. h6+ $18 {[%emt 0:00:45]} Kh7 {[%emt 0:00:25] [#]} 66. Qe3 $2 {[%emt 0:00:33]} (66. Qxd5 $1 $18 {White wants to mate with Qd8.} exd5 67. Nxc3) 66... Bd4 {[%emt 0:00:24]} 67. Qf4 {[%emt 0:00:26]} f6 {[%emt 0:00:43] Against Ng5+} (67... c3 $1 $15) 68. Qc7+ $11 {[%emt 0:00:33]} Kxh6 {[%emt 0:00:07]} 69. Qf7 $2 {[%emt 0:00:06][%mdl 8192]} (69. Qh2+ $11 Kg7 70. Qc7+ Kg8 71. Qb8+ Kh7 72. Qc7+ Kh6 73. Qh2+ Qh5 74. Qd6) 69... f5 $19 {[%emt 0:00:20]} 70. Ng3 {[%emt 0:00:26]} Be5 {[%emt 0:00:39] Hoping for ...Qd2+.} 71. Qf8+ {[%emt 0:00:13]} Bg7 {[%emt 0:00:14]} 72. Qe7 {[%emt 0:00:14]} Kh7 {[%emt 0:00:25]} 73. Qg5 {[%emt 0:00:31]} c3 {[%emt 0:00:08][%cal Bc4c3,Bc3c2][%mdl 32] ( -> ...Qd2+)} 74. Kh3 {[%emt 0:00:17]} Qd2 {[%emt 0:00:20] Black mates.} 75. f4 {[%emt 0:00:14]} c2 {[%emt 0:00:15]} 76. Nh5 {[%emt 0:00:33]} Qe3+ {[%emt 0:00:48]} 77. Kh4 {[%emt 0:00:42]} Qf2+ {[%emt 0:00:13]} 78. Kh3 {[%emt 0:00:27]} Qf3+ {[%emt 0:00:05]} 79. Ng3 {[%emt 0:00:17]} Qg4+ {[%emt 0:00:10] Both players deserved the win here.  Weighted Error Value: White=0.28 (precise) /Black=0.25 (precise)} 0-1

[Event "44th Chess Olympiad Open 2022"]
[Site "Chennai"]
[Date "2022.08.05"]
[Round "7.49"]
[White "Sanchez Alvarez, Roberto Carlos"]
[Black "Chinchilla, Alejandro Jose"]
[Result "1-0"]
[ECO "D36"]
[WhiteElo "2431"]
[BlackElo "2166"]
[Annotator "ChessBase"]
[PlyCount "63"]
[EventDate "2022.07.29"]
[EventType "team-tourn"]
[EventCountry "IND"]
[SourceTitle "playchess.com"]
[Source "ChessBase"]
[SourceQuality "1"]
[WhiteTeam "Panama"]
[BlackTeam "Honduras"]
[WhiteTeamCountry "PAN"]
[BlackTeamCountry "HON"]
[TimeControl "40/5400+30:1800+30"]

1. d4 {[%emt 0:00:03]} d5 {[%emt 0:00:10]} 2. c4 {[%emt 0:00:47]} e6 {[%emt 0:00:13]} 3. Nc3 {[%emt 0:00:08]} Nf6 {[%emt 0:00:16]} 4. cxd5 {[%emt 0:03:54]} exd5 {[%emt 0:00:13]} 5. Bg5 {[%emt 0:00:09]} Be7 {[%emt 0:00:38]} 6. e3 {[%emt 0:00:18]} h6 {[%emt 0:00:23]} 7. Bh4 {[%emt 0:01:04]} c6 {[%emt 0:00:26]} 8. Bd3 {[%emt 0:02:47]} Nbd7 {[%emt 0:00:28]} 9. Qc2 {[%emt 0:04:00]} Nh5 {[%emt 0:00:25]} 10. Bxe7 {[%emt 0:00:19]} Qxe7 {[%emt 0:00:07]} 11. O-O-O {[%emt 0:00:17]} Nb6 {[%emt 0:00:11]} 12. Kb1 {[%emt 0:01:20]} Nf6 {[%emt 0:06:54]} 13. Nf3 {[%emt 0:03:06]} Bg4 {[%emt 0:00:19]} 14. Rc1 {[%emt 0:00:30]} Bxf3 {[%emt 0:02:20]} 15. gxf3 {[%emt 0:00:02]} O-O-O {[%emt 0:00:12]} 16. Qb3 {[%emt 0:09:48]} Kb8 {[%emt 0:05:44]} 17. a4 {[%emt 0:03:09]} Nc8 {[%emt 0:26:54]} 18. a5 {[%emt 0:05:49]} Nd6 {[%emt 0:26:10]} 19. Na4 {[%emt 0:31:17]} Ka8 {[%emt 0:01:24]} 20. Rc3 {[%emt 0:01:57]} Rc8 {[%emt 0:16:53]} 21. Rhc1 {[%emt 0:02:15]} Rc7 {[%emt 0:02:47]} 22. Qa3 {[%emt 0:04:04]} Rd8 {[%emt 0:01:40]} 23. Nb6+ {[%emt 0:12:30]} Kb8 {[%emt 0:00:18]} 24. Qb3 {[%emt 0:00:15]} Qe6 {[%emt 0:01:38]} 25. Na4 {[%emt 0:01:44]} Ka8 {[%emt 0:00:46]} 26. Qb4 {[%emt 0:01:27]} g6 {[%emt 0:02:21]} 27. a6 {[%emt 0:01:12]} b5 {[%emt 0:00:27]} 28. Rxc6 {[%emt 0:01:19]} Rxc6 {[%emt 0:00:20]} 29. Rxc6 {[%emt 0:00:02]} Nfe8 {[%emt 0:03:11]} 30. Nc5 {[%emt 0:02:36]} Qh3 {[%emt 0:00:20]} 31. Bxb5 {[%emt 0:00:23]} Rb8 {[%emt 0:01:12]} 32. Rxd6 {[%emt 0:00:22]} 1-0

[Event "44th Chess Olympiad Open 2022"]
[Site "Chennai"]
[Date "2022.08.05"]
[Round "7.49"]
[White "Ramos Espinoza, Efren Andres"]
[Black "Gavarrete, Joel"]
[Result "1/2-1/2"]
[ECO "A36"]
[WhiteElo "2158"]
[BlackElo "2035"]
[Annotator "NA RC"]
[PlyCount "114"]
[EventDate "2022.07.29"]
[EventType "team-tourn"]
[EventCountry "IND"]
[SourceTitle "playchess.com"]
[Source "ChessBase"]
[SourceQuality "1"]
[WhiteTeam "Panama"]
[BlackTeam "Honduras"]
[WhiteTeamCountry "PAN"]
[BlackTeamCountry "HON"]
[TimeControl "40/5400+30:1800+30"]

1. c4 {[%emt 0:00:32]} c5 {[%emt 0:00:23]} 2. Nc3 {[%emt 0:00:09]} Nc6 {[%emt 0:01:54]} 3. g3 {[%emt 0:00:07]} Nf6 {[%emt 0:01:30]} 4. Bg2 {[%emt 0:00:16]} g6 {[%emt 0:01:24]} 5. e4 {[%emt 0:00:52]} e5 {[%emt 0:06:59]} 6. Nge2 {[%emt 0:00:33]} h5 {[%emt 0:05:27]} 7. h3 {[%emt 0:00:55]} d6 {[%emt 0:09:38]} 8. d3 {[%emt 0:01:28]} Be6 {[%emt 0:02:29]} 9. Nd5 {[%emt 0:07:01]} Bxd5 {[%emt 0:05:23]} 10. cxd5 {[%emt 0:01:19]} Nd4 {[%emt 0:00:13]} 11. Nxd4 {[%emt 0:01:06]} cxd4 {[%emt 0:00:12]} 12. O-O {[%emt 0:00:36]} Be7 {[%emt 0:02:47]} 13. Bd2 {[%emt 0:05:28]} h4 {[%emt 0:03:16]} 14. g4 {[%emt 0:00:30]} Nd7 {[%emt 0:05:08]} 15. Rc1 {[%emt 0:05:07]} O-O {[%emt 0:06:55]} 16. Bh6 {[%emt 0:01:29]} Bg5 {[%emt 0:05:44]} 17. Bxf8 {[%emt 0:05:15]} Kxf8 {[%emt 0:00:08]} 18. Rc4 {[%emt 0:01:22]} a5 {[%emt 0:03:32]} 19. Qc2 {[%emt 0:01:14]} Nb6 {[%emt 0:03:01]} 20. Rc7 {[%emt 0:02:08]} Rc8 {[%emt 0:02:49]} 21. Rxc8 {[%emt 0:00:23]} Qxc8 {[%emt 0:00:05]} 22. Qxc8+ {[%emt 0:02:32]} Nxc8 {[%emt 0:00:06]} 23. Rb1 {[%emt 0:00:27]} b5 {[%emt 0:04:54]} 24. Kf1 {[%emt 0:05:41]} Ke7 {[%emt 0:02:19]} 25. Ke1 {[%emt 0:00:25]} Nb6 {[%emt 0:00:30]} 26. Kd1 {[%emt 0:00:40]} Kd7 {[%emt 0:05:37]} 27. b3 {[%emt 0:00:58]} Kc7 {[%emt 0:08:26]} 28. Rb2 {[%emt 0:00:14]} Kb7 {[%emt 0:00:18]} 29. Rc2 {[%emt 0:00:08]} Nc8 {[%emt 0:01:59]} 30. Rc6 {[%emt 0:02:07]} Be7 {[%emt 0:00:11]} 31. a3 {[%emt 0:05:19]} Na7 {[%emt 0:00:48]} 32. Rc2 {[%emt 0:00:12]} Bd8 {[%emt 0:00:26]} 33. Bf3 {[%emt 0:04:06]} g5 {[%emt 0:06:24]} 34. Kd2 {[%emt 0:00:52]} Bb6 {[%emt 0:02:05]} 35. b4 {[%emt 0:01:10]} a4 {[%emt 0:01:01]} 36. Rc1 {[%emt 0:01:21]} Bc7 {[%emt 0:00:29]} 37. Bh1 {[%emt 0:00:35]} Bd8 {[%emt 0:01:20]} 38. Bg2 {[%emt 0:03:06]} Nc8 {[%emt 0:00:31]} 39. Rc6 {[%emt 0:01:48]} Bc7 {[%emt 0:00:21]} 40. f4 {[%emt 0:17:07]} gxf4 {[%emt 0:00:46]} 41. g5 {[%emt 0:30:39]} Na7 {[%emt 0:32:49]} 42. Rxc7+ {[%emt 0:09:34]} Kxc7 {[%emt 0:00:06]} 43. Ke2 {[%emt 0:00:08]} Nc8 {[%emt 0:05:40]} 44. Kf3 {[%emt 0:00:00]} Ne7 {[%emt 0:00:00]} 45. Kg4 {[%emt 0:00:00]} Kd7 {[%emt 0:00:00]} 46. Kxh4 {[%emt 0:00:00]} f3 {[%emt 0:00:00]} 47. Bf1 {[%emt 0:00:00]} Ng6+ {[%emt 0:00:00]} 48. Kg4 {[%emt 0:00:00]} Ke7 {[%emt 0:00:00]} 49. Kxf3 {[%emt 0:00:00]} Kf8 {[%emt 0:00:00]} 50. Kg4 {[%emt 0:00:00]} Kg7 {[%emt 0:00:00]} 51. h4 {[%emt 0:00:00]} Nf4 {[%emt 0:00:00]} 52. h5 {[%emt 0:00:00]} Kh7 {[%emt 0:00:00]} 53. Kh4 {[%emt 0:00:00]} Kg7 {[%emt 0:00:00]} 54. h6+ {[%emt 0:00:00]} Kh7 {[%emt 0:00:00]} 55. Kg4 {[%emt 0:00:00]} Kg6 {[%emt 0:00:00]} 56. Kh4 {[%emt 0:00:00]} f6 {[%emt 0:00:00]} 57. gxf6 {[%emt 0:00:00]} Kxh6 {[%emt 0:00:00]} 1/2-1/2

[Event "44th Chess Olympiad Open 2022"]
[Site "Chennai"]
[Date "2022.08.05"]
[Round "7.49"]
[White "Garcia Cuestas, Kevin"]
[Black "Tapia Ostolaza, Alexei"]
[Result "0-1"]
[ECO "D11"]
[WhiteElo "1984"]
[BlackElo "2201"]
[Annotator "NA RC"]
[PlyCount "106"]
[EventDate "2022.07.29"]
[EventType "team-tourn"]
[EventCountry "IND"]
[SourceTitle "playchess.com"]
[Source "ChessBase"]
[SourceQuality "1"]
[WhiteTeam "Honduras"]
[BlackTeam "Panama"]
[WhiteTeamCountry "HON"]
[BlackTeamCountry "PAN"]
[TimeControl "40/5400+30:1800+30"]

1. Nf3 {[%emt 0:00:19]} Nf6 {[%emt 0:00:13]} 2. g3 {[%emt 0:00:30]} d5 {[%emt 0:00:32]} 3. d4 {[%emt 0:01:55]} Bf5 {[%emt 0:02:35]} 4. c4 {[%emt 0:01:57]} c6 {[%emt 0:01:02]} 5. cxd5 {[%emt 0:02:00]} Nxd5 {[%emt 0:05:40]} 6. Nc3 {[%emt 0:05:57]} Nb4 {[%emt 0:02:31]} 7. e4 {[%emt 0:01:36]} Bg4 {[%emt 0:00:08]} 8. Bg2 {[%emt 0:01:55]} Bxf3 {[%emt 0:01:23]} 9. Bxf3 {[%emt 0:00:06]} Qxd4 {[%emt 0:01:13]} 10. O-O {[%emt 0:19:08]} Qxd1 {[%emt 0:04:52]} 11. Rxd1 {[%emt 0:00:28]} Nd7 {[%emt 0:03:11]} 12. a3 {[%emt 0:06:30]} Na6 {[%emt 0:06:24]} 13. b4 {[%emt 0:06:36]} e5 {[%emt 0:19:16]} 14. Be3 {[%emt 0:05:22]} Be7 {[%emt 0:04:19]} 15. Be2 {[%emt 0:04:32]} Nc7 {[%emt 0:01:52]} 16. Na4 {[%emt 0:08:13]} Nf6 {[%emt 0:02:18]} 17. f3 {[%emt 0:00:38]} O-O {[%emt 0:01:36]} 18. Nb2 {[%emt 0:07:01]} Rfe8 {[%emt 0:05:54]} 19. Nc4 {[%emt 0:01:42]} Bf8 {[%emt 0:04:08]} 20. Na5 {[%emt 0:01:00]} Reb8 {[%emt 0:01:46]} 21. Nc4 {[%emt 0:03:22]} Nb5 {[%emt 0:04:32]} 22. Bf1 {[%emt 0:01:45]} Nd4 {[%emt 0:01:55]} 23. Kf2 {[%emt 0:09:49]} Nc2 {[%emt 0:00:41]} 24. Rab1 {[%emt 0:01:44]} Nxe3 {[%emt 0:02:12]} 25. Kxe3 {[%emt 0:00:18]} Re8 {[%emt 0:00:41]} 26. Na5 {[%emt 0:01:02]} Rab8 {[%emt 0:00:37]} 27. Rbc1 {[%emt 0:01:38]} g6 {[%emt 0:03:59]} 28. Kf2 {[%emt 0:01:41]} Be7 {[%emt 0:04:04]} 29. Nc4 {[%emt 0:01:58]} Bd8 {[%emt 0:02:59]} 30. Nd6 {[%emt 0:01:12]} Re7 {[%emt 0:00:35]} 31. Bc4 {[%emt 0:00:38]} Bc7 {[%emt 0:03:17]} 32. Nxf7 {[%emt 0:02:29]} Rxf7 {[%emt 0:00:28]} 33. Ke2 {[%emt 0:00:25]} Bb6 {[%emt 0:04:37]} 34. Rd6 {[%emt 0:01:11]} Kg7 {[%emt 0:00:42]} 35. Bxf7 {[%emt 0:00:06]} Kxf7 {[%emt 0:00:02]} 36. Rd2 {[%emt 0:00:48]} Bd4 {[%emt 0:00:25]} 37. Rc4 {[%emt 0:00:39]} Rd8 {[%emt 0:01:25]} 38. a4 {[%emt 0:00:26]} Ke6 {[%emt 0:00:42]} 39. a5 {[%emt 0:00:19]} a6 {[%emt 0:00:14]} 40. Rcc2 {[%emt 0:00:43]} Ne8 {[%emt 0:00:24]} 41. f4 {[%emt 0:30:30]} Nd6 {[%emt 0:30:59]} 42. Kf3 {[%emt 0:00:00]} Rf8 {[%emt 0:00:00]} 43. Rd1 {[%emt 0:00:00]} Nb5 {[%emt 0:00:00]} 44. Rcd2 {[%emt 0:00:00]} Rf7 {[%emt 0:00:00]} 45. Rd3 {[%emt 0:00:00]} h5 {[%emt 0:00:00]} 46. h4 {[%emt 0:00:00]} Bc3 {[%emt 0:00:00]} 47. Rb1 {[%emt 0:00:00]} exf4 {[%emt 0:00:00]} 48. gxf4 {[%emt 0:00:00]} Be5 {[%emt 0:00:00]} 49. f5+ {[%emt 0:00:00]} gxf5 {[%emt 0:00:00]} 50. exf5+ {[%emt 0:00:00]} Rxf5+ {[%emt 0:00:00]} 51. Kg2 {[%emt 0:00:00]} Rf4 {[%emt 0:00:00]} 52. Kh3 {[%emt 0:00:00]} Nd6 {[%emt 0:00:00]} 53. Re3 {[%emt 0:00:00]} Nf5 {[%emt 0:00:00]} 0-1